bitfinex/quotes_BTCUSD_20230113
["timestamp","ask_amount","ask_price","bid_price","bid_amount"]
[1673647004408,0.324101,19872.0,19869.0,0.00244705]
[1673647004653,0.3241642,19871.0,19869.0,0.00244705]
[1673647004897,0.2,19870.0,19861.0,0.15]
[1673647005174,0.2,19870.0,19861.0,0.653486]
[1673647005175,0.503339,19868.0,19861.0,0.653486]
[1673647005422,1.17198,19868.0,19861.0,0.653486]
[1673647005670,0.703339,19868.0,19861.0,0.15]
[1673647005916,0.2,19867.0,19861.0,0.15]
[1673647006172,0.503377,19866.0,19861.0,0.15]
[1673647006689,0.603339,19868.0,19861.0,0.86379794]
[1673647006930,0.1,19868.0,19862.0,0.22608]
[1673647007183,0.1,19868.0,19863.0,0.21030494]
[1673647007456,0.1,19868.0,19864.0,0.21030494]
[1673647007703,0.503198,19873.0,19868.0,0.01092408]
[1673647007949,0.503198,19873.0,19865.0,1.781279]
[1673647007950,0.0002,19869.0,19865.0,1.24062766]
[1673647008232,0.0002,19869.0,19866.0,0.39722916]
[1673647008474,0.0002,19869.0,19867.0,1.2327]
[1673647008710,0.24845,19873.0,19868.0,0.226]
[1673647008711,0.23655,19873.0,19868.0,0.226]
[1673647008948,0.739752,19873.0,19869.0,0.21030494]
[1673647009186,0.524101,19872.0,19869.0,0.21030494]
[1673647009434,6.32e-05,19871.0,19865.0,0.653394]
[1673647009674,6.32e-05,19871.0,19865.0,0.86369894]
[1673647009921,6.32e-05,19871.0,19866.0,0.00019]
[1673647010159,0.92182037,19874.0,19867.0,0.71364594]
[1673647010160,0.52236337,19874.0,19867.0,0.71364594]
[1673647010428,1.02553437,19874.0,19868.0,0.21030494]
[1673647010665,1.02553437,19874.0,19869.0,0.21030494]
[1673647010914,1.02553437,19874.0,19870.0,0.21030494]
[1673647010915,0.324101,19873.0,19870.0,0.21030494]
[1673647011160,6.32e-05,19872.0,19866.0,0.50355]
[1673647011401,1.330614,19871.0,19866.0,0.00019]
[1673647011656,0.475901,19870.0,19866.0,0.00019]
[1673647011905,0.475901,19870.0,19861.0,0.503483]
[1673647011906,1.006602,19869.0,19861.0,0.503483]
[1673647012142,0.324101,19868.0,19860.0,0.50777336]
[1673647012387,0.50338,19866.0,19860.0,0.00426736]
[1673647013146,0.324101,19865.0,19860.0,0.2145723]
[1673647013419,1.006825,19865.0,19860.0,0.00426736]
[1673647013663,0.2,19864.0,19860.0,0.00426736]
[1673647013907,0.503436,19864.0,19860.0,0.00426736]
[1673647014652,0.703423,19865.0,19861.0,0.21030494]
[1673647014908,6e-05,19866.0,19862.0,1.46435743]
[1673647015228,6e-05,19866.0,19863.0,0.43637694]
[1673647015475,6e-05,19866.0,19864.0,1.21715094]
[1673647015730,6e-05,19866.0,19865.0,0.226045]
[1673647015991,0.39262,19871.0,19865.0,0.43634994]
[1673647015992,0.1521,19871.0,19865.0,0.43634994]
[1673647016236,1.80582637,19872.0,19865.0,0.43634994]
[1673647016237,0.01900537,19872.0,19866.0,1.51706894]
[1673647016486,0.01900537,19872.0,19867.0,0.43631694]
[1673647016744,0.01900537,19872.0,19868.0,2.02024394]
[1673647016994,0.01900537,19872.0,19869.0,0.43628994]
[1673647017241,0.01900537,19872.0,19870.0,1.006542]
[1673647017482,0.01900537,19872.0,19871.0,0.225958]
[1673647017739,0.01900537,19872.0,19870.0,0.503271]
[1673647017983,0.01900537,19872.0,19871.0,0.225956]
[1673647018234,0.01900537,19872.0,19871.0,0.729201]
[1673647018732,0.01900537,19872.0,19871.0,0.225956]
[1673647019225,0.01900537,19872.0,19868.0,0.503305]
[1673647019483,0.01900537,19872.0,19866.0,0.503421]
[1673647019732,0.01900537,19872.0,19866.0,6e-05]
[1673647019974,0.01900537,19872.0,19867.0,0.21030494]
[1673647020235,0.2,19868.0,19866.0,6e-05]
[1673647020503,0.07714,19867.0,19866.0,6e-05]
[1673647021471,0.703322,19868.0,19866.0,6e-05]
[1673647021716,0.503457,19870.0,19866.0,6e-05]
[1673647021980,0.503457,19870.0,19866.0,0.21036494]
[1673647022236,0.00017,19870.0,19867.0,0.02103649]
[1673647022488,0.01900537,19872.0,19870.0,0.47155517]
[1673647022751,0.01900537,19872.0,19870.0,0.68186011]
[1673647023005,0.01900537,19872.0,19870.0,0.47155517]
[1673647023255,0.01900537,19872.0,19870.0,0.46939614]
[1673647024021,0.01900537,19872.0,19871.0,0.21030494]
[1673647024294,0.01900537,19872.0,19870.0,0.97266314]
[1673647024799,0.01900537,19872.0,19871.0,0.225957]
[1673647025112,0.01900537,19872.0,19871.0,1.029202]
[1673647025323,0.00079153,19872.0,19871.0,1.029202]
[1673647025573,0.01900537,19874.0,19871.0,1.95959556]
[1673647025814,0.01900537,19874.0,19872.0,0.30076455]
[1673647026066,0.01900537,19874.0,19873.0,1.26239646]
[1673647026818,0.01900537,19874.0,19873.0,2.34069002]
[1673647027075,0.01900537,19874.0,19873.0,2.2989341]
[1673647027336,0.02751066,19881.0,19874.0,0.34570371]
[1673647027605,0.02751066,19881.0,19878.0,0.2]
[1673647027849,0.02751066,19881.0,19879.0,3.28265564]
[1673647028090,0.02751066,19881.0,19879.0,1.509129]
[1673647028337,0.02751066,19881.0,19879.0,1.006086]
[1673647028584,0.02751066,19881.0,19879.0,0.71334794]
[1673647028839,0.02751066,19881.0,19879.0,0.503043]
[1673647029077,0.02751066,19881.0,19879.0,0.703043]
[1673647029321,0.02751066,19881.0,19879.0,2.24784192]
[1673647029580,0.02751066,19881.0,19879.0,4.37191041]
[1673647029845,0.02751066,19881.0,19879.0,2.19049228]
[1673647030095,0.02751066,19881.0,19879.0,4.42340485]
[1673647030376,0.02751066,19881.0,19879.0,4.67913631]
[1673647030636,0.02751066,19881.0,19879.0,5.17402041]
[1673647030882,0.34064,19890.0,19883.0,0.502923]
[1673647031188,0.34064,19890.0,19885.0,1.508667]
[1673647031453,0.34064,19890.0,19887.0,0.4593]
[1673647031694,0.51798585,19901.0,19887.0,0.4593]
[1673647031695,0.31658695,19907.0,19890.0,0.1521]
[1673647031943,0.50078516,19909.0,19892.0,0.2]
[1673647031944,0.3998489,19909.0,19892.0,0.2]
[1673647032197,0.3998489,19909.0,19892.0,0.50271]
[1673647032198,0.5262327,19903.0,19892.0,0.50271]
[1673647032465,0.6,19896.0,19889.0,0.3081]
[1673647032735,0.324013,19895.0,19889.0,0.3081]
[1673647032978,0.654415,19896.0,19885.0,0.3374322]
[1673647032979,1.169691,19894.0,19885.0,0.3374322]
[1673647033235,0.5262327,19887.0,19885.0,0.3374322]
[1673647033490,0.5262327,19887.0,19881.0,0.02668092]
[1673647033491,1.06055064,19886.0,19881.0,0.02668092]
[1673647033747,0.5262327,19882.0,19881.0,0.02668092]
[1673647033997,0.2,19881.0,19879.0,2.85155581]
[1673647034243,0.2,19881.0,19875.0,0.25699]
[1673647034244,1.21398864,19880.0,19875.0,0.25699]
[1673647034492,0.00017256,19880.0,19877.0,0.25718]
[1673647034742,0.00017256,19880.0,19877.0,0.00019]
[1673647034989,0.8502457,19879.0,19877.0,0.00019]
[1673647035243,1.16246864,19878.0,19874.0,0.01860371]
[1673647035487,0.5262327,19875.0,19874.0,0.01860371]
[1673647035731,0.84908822,19875.0,19874.0,0.01860371]
[1673647036015,1.10065822,19875.0,19874.0,0.01860371]
[1673647036265,0.7521637,19875.0,19874.0,0.01860371]
[1673647036513,0.75233626,19875.0,19874.0,0.01860371]
[1673647037029,1.07803083,19875.0,19872.0,0.00076455]
[1673647037300,1.6238147,19874.0,19872.0,0.00076455]
[1673647037562,0.220931,19873.0,19872.0,0.00076455]
[1673647037842,0.9987637,19873.0,19872.0,0.00076455]
[1673647038116,0.08137545,19871.0,19870.0,0.46939614]
[1673647038365,1.14192609,19871.0,19870.0,0.46939614]
[1673647038614,0.93162115,19871.0,19870.0,0.46939614]
[1673647039123,1.13162115,19871.0,19870.0,0.46939614]
[1673647039381,0.2,19870.0,19866.0,6e-05]
[1673647039616,0.25168,19867.0,19866.0,6e-05]
[1673647039870,1.06055064,19867.0,19866.0,6e-05]
[1673647040117,1.26055064,19867.0,19866.0,6e-05]
[1673647040376,1.26055064,19867.0,19862.0,0.00019]
[1673647040377,1.9654541,19867.0,19862.0,0.00019]
[1673647040633,0.25173,19863.0,19860.0,0.03218076]
[1673647040881,1.56402364,19862.0,19860.0,0.03218076]
[1673647041123,0.420931,19861.0,19860.0,0.03218076]
[1673647041382,1.15746864,19861.0,19856.0,0.25699]
[1673647041634,1.26055064,19860.0,19856.0,0.25699]
[1673647041890,1.26055064,19860.0,19855.0,0.00393781]
[1673647041891,0.43123594,19859.0,19855.0,0.00393781]
[1673647042138,0.73431794,19858.0,19855.0,0.00393781]
[1673647042379,0.73431794,19858.0,19853.0,0.00426736]
[1673647042380,0.2,19856.0,19853.0,0.00426736]
[1673647042643,0.41954894,19855.0,19853.0,0.00426736]
[1673647042892,0.324017,19854.0,19853.0,0.00426736]
[1673647043140,0.324017,19854.0,19852.0,0.25718]
[1673647043383,0.07731256,19853.0,19852.0,0.00019]
[1673647043674,0.2,19855.0,19852.0,0.25718]
[1673647043912,0.2,19860.0,19853.0,0.21030494]
[1673647044169,0.29553594,19860.0,19855.0,0.25699]
[1673647044449,0.29553594,19860.0,19856.0,0.21030494]
[1673647044450,0.24678,19859.0,19856.0,0.21030494]
[1673647044677,0.24678,19859.0,19847.0,0.39154]
[1673647044678,0.40391,19857.0,19850.0,0.03693477]
[1673647044922,0.827605,19858.0,19849.0,0.25699]
[1673647044923,0.25186,19853.0,19849.0,0.25699]
[1673647045175,0.827762,19852.0,19849.0,0.25699]
[1673647045425,0.217489,19851.0,19849.0,0.25699]
[1673647045677,1.027808,19850.0,19845.0,0.15]
[1673647045924,0.09553594,19849.0,19845.0,0.15]
[1673647046410,0.43118344,19850.0,19845.0,0.15]
[1673647046411,0.09553594,19848.0,19845.0,0.15]
[1673647046912,0.40445114,19849.0,19845.0,0.15]
[1673647046913,0.09553594,19847.0,19845.0,0.15]
[1673647047162,0.09553594,19847.0,19844.0,0.00019]
[1673647047163,0.217488,19846.0,19844.0,0.00019]
[1673647047420,0.09553594,19846.0,19844.0,0.00019]
[1673647047670,0.703818,19849.0,19842.0,0.03693477]
[1673647047919,0.703818,19849.0,19843.0,0.21030494]
[1673647047920,0.09553594,19848.0,19843.0,0.21030494]
[1673647048169,0.10053594,19848.0,19843.0,0.21030494]
[1673647048416,0.10053594,19847.0,19840.0,0.504019]
[1673647048683,0.10053594,19847.0,19839.0,0.65817114]
[1673647048684,0.71668433,19848.0,19839.0,0.65817114]
[1673647048922,0.25195,19846.0,19839.0,0.15413014]
[1673647049185,0.21270187,19845.0,19839.0,0.15413014]
[1673647049431,0.21270187,19845.0,19839.0,0.00413014]
[1673647049432,0.50394,19844.0,19839.0,0.00413014]
[1673647049682,0.18862924,19844.0,19839.0,0.00413014]
[1673647049930,0.0002,19844.0,19839.0,0.00413014]
[1673647050425,0.189443,19844.0,19839.0,0.00413014]
[1673647050678,0.0002,19844.0,19839.0,0.00413014]
[1673647051429,0.703728,19852.0,19840.0,1.48793764]
[1673647051674,2.05351,19856.0,19845.0,0.6]
[1673647051675,0.503676,19855.0,19845.0,0.6]
[1673647051919,0.503676,19855.0,19844.0,0.15154348]
[1673647051920,1.845883,19858.0,19847.0,0.7514]
[1673647052170,0.503609,19857.0,19848.0,0.53434594]
[1673647052422,0.503609,19857.0,19849.0,0.51030494]
[1673647052683,0.25183,19856.0,19849.0,0.21030494]
[1673647052936,0.25183,19856.0,19850.0,0.21030494]
[1673647052937,0.721144,19855.0,19850.0,0.21030494]
[1673647053209,0.25188,19852.0,19847.0,0.15]
[1673647053452,0.82178894,19851.0,19844.0,0.00014348]
[1673647053700,0.40291308,19850.0,19846.0,0.00019]
[1673647053948,1.207616,19849.0,19846.0,0.00019]
[1673647054194,0.217488,19848.0,19844.0,0.00014348]
[1673647054433,0.217488,19848.0,19839.0,0.94728302]
[1673647054434,1.459668,19847.0,19839.0,0.12700307]
[1673647054686,0.62040108,19846.0,19839.0,0.12700307]
[1673647054966,1.10683908,19845.0,19839.0,0.12700307]
[1673647055219,0.62040108,19844.0,19837.0,0.00422395]
[1673647055522,0.40291308,19843.0,19837.0,0.21452889]
[1673647055727,0.40291308,19844.0,19837.0,0.71863189]
[1673647055978,0.40291308,19846.0,19845.0,0.15618847]
[1673647056222,0.2,19850.0,19845.0,0.36649341]
[1673647056467,0.2,19850.0,19846.0,0.53434594]
[1673647056468,0.703783,19850.0,19846.0,0.53434594]
[1673647056714,0.703783,19850.0,19847.0,0.21030494]
[1673647056715,0.955683,19850.0,19847.0,0.21030494]
[1673647056967,0.217488,19849.0,19847.0,0.21030494]
[1673647057232,0.503829,19848.0,19845.0,0.15618847]
[1673647057532,0.417488,19847.0,19845.0,0.15618847]
[1673647057774,0.417488,19847.0,19839.0,0.710715]
[1673647057775,1.581418,19846.0,19837.0,0.00422395]
[1673647058033,0.7714086,19845.0,19837.0,0.00422395]
[1673647058292,1.007924,19843.0,19837.0,0.00422395]
[1673647058799,0.2,19841.0,19837.0,0.00422395]
[1673647059041,0.704011,19841.0,19837.0,0.00422395]
[1673647059290,0.25204,19839.0,19837.0,0.0041354]
[1673647059539,0.217488,19838.0,19837.0,0.0041354]
[1673647059779,0.417488,19838.0,19837.0,0.0041354]
[1673647060766,0.417688,19838.0,19837.0,0.0041354]
[1673647061014,0.01213,19837.0,19833.0,0.00512075]
[1673647061256,0.3649225,19837.0,19833.0,0.00512075]
[1673647061497,0.01213,19837.0,19833.0,0.00512075]
[1673647061753,0.217488,19836.0,19833.0,0.00512075]
[1673647062014,0.516244,19837.0,19833.0,0.00512075]
[1673647062247,0.516244,19837.0,19833.0,0.21542569]
[1673647062741,0.099,19836.0,19833.0,0.22342569]
[1673647062994,0.099,19836.0,19833.0,0.01312075]
[1673647063489,0.08,19838.0,19833.0,0.22342569]
[1673647063753,0.08,19838.0,19835.0,0.2]
[1673647063754,0.094,19837.0,19835.0,0.2]
[1673647064016,0.094,19837.0,19836.0,0.21030494]
[1673647064268,0.01021525,19837.0,19836.0,1.33847894]
[1673647064513,0.01021525,19837.0,19836.0,1.128174]
[1673647064765,0.01041525,19837.0,19836.0,1.36498304]
[1673647065012,0.08,19838.0,19837.0,0.3608908]
[1673647065261,0.089,19838.0,19837.0,1.39742844]
[1673647065518,0.08,19838.0,19837.0,2.55618954]
[1673647066018,0.05670113,19838.0,19837.0,2.55618954]
[1673647066266,0.38321172,19847.0,19837.0,4.67459448]
[1673647066267,0.03,19847.0,19837.0,4.67459448]
[1673647066515,0.0002,19839.0,19838.0,1.68013764]
[1673647066760,0.03,19847.0,19838.0,2.20702972]
[1673647067000,0.03,19847.0,19839.0,1.24463764]
[1673647067244,0.03,19847.0,19841.0,1.511988]
[1673647067505,0.03,19847.0,19842.0,0.51030494]
[1673647067758,0.03,19847.0,19843.0,2.24617494]
[1673647068003,0.03,19847.0,19844.0,0.51030494]
[1673647068254,0.03,19847.0,19845.0,0.324041]
[1673647068507,0.03,19847.0,19839.0,0.504056]
[1673647068752,0.03,19847.0,19838.0,0.04457302]
[1673647068753,0.733863,19847.0,19838.0,0.04457302]
[1673647069016,0.03,19847.0,19839.0,0.504053]
[1673647069262,0.03,19847.0,19840.0,1.06057864]
[1673647069263,0.04,19847.0,19840.0,1.06057864]
[1673647069505,0.04,19847.0,19841.0,0.73653764]
[1673647069506,0.039,19847.0,19841.0,0.73653764]
[1673647069756,0.039,19847.0,19842.0,2.77251264]
[1673647070004,0.039,19847.0,19843.0,1.03653764]
[1673647070253,0.039,19847.0,19844.0,2.04612094]
[1673647070503,0.039,19847.0,19845.0,0.624041]
[1673647070746,0.03,19847.0,19846.0,0.2]
[1673647071020,0.03,19847.0,19846.0,1.531799]
[1673647071262,0.03,19847.0,19846.0,1.831799]
[1673647071782,0.03,19847.0,19846.0,2.57833664]
[1673647071783,0.04,19847.0,19846.0,2.57833664]
[1673647072036,0.03,19847.0,19846.0,2.335678]
[1673647072271,0.00016,19849.0,19847.0,0.3340769]
[1673647072522,0.00016,19849.0,19848.0,2.9698607]
[1673647073506,0.00016,19849.0,19848.0,2.6617607]
[1673647073755,0.00016,19849.0,19848.0,1.835528]
[1673647074005,0.01602968,19850.0,19848.0,1.81396931]
[1673647074254,0.08614,19849.0,19848.0,0.001]
[1673647074502,0.01602968,19850.0,19848.0,0.001]
[1673647074503,0.01602968,19850.0,19848.0,0.309956]
[1673647074764,0.08214,19849.0,19848.0,0.124]
[1673647075011,0.07714,19849.0,19847.0,0.0149269]
[1673647075257,0.07714,19849.0,19848.0,0.116]
[1673647075500,0.5262327,19840.0,19833.0,5.50575575]
[1673647075750,0.1219,19834.0,19827.0,0.00538633]
[1673647076004,0.1219,19834.0,19826.0,0.21406429]
[1673647076005,0.1219,19830.0,19820.0,0.003201]
[1673647076250,0.25202,19828.0,19820.0,0.003201]
[1673647076515,0.25202,19828.0,19819.0,2.78213825]
[1673647076516,0.6661585,19827.0,19819.0,2.78213825]
[1673647076768,0.4260275,19826.0,19819.0,2.78213825]
[1673647077019,0.7663637,19825.0,19819.0,2.78213825]
[1673647077268,0.7663637,19825.0,19820.0,0.002]
[1673647077269,1.1219796,19824.0,19820.0,0.002]
[1673647077565,0.99279583,19823.0,19819.0,2.78213825]
[1673647077811,0.99279583,19823.0,19819.0,2.77913825]
[1673647077812,0.25229,19821.0,19819.0,2.77913825]
[1673647078066,0.25229,19821.0,19819.0,2.77713825]
[1673647078311,0.25229,19821.0,19820.0,0.002]
[1673647078579,0.240131,19821.0,19813.0,0.2]
[1673647078834,0.35365948,19820.0,19813.0,0.41030494]
[1673647079086,0.03536595,19820.0,19819.0,0.002]
[1673647079339,0.240131,19820.0,19819.0,0.002]
[1673647079631,0.79147139,19820.0,19819.0,0.002]
[1673647079865,0.440131,19820.0,19819.0,0.0018]
[1673647080128,0.440131,19820.0,19813.0,0.39235494]
[1673647080129,0.240131,19820.0,19813.0,0.39235494]
[1673647080372,0.51237662,19821.0,19814.0,0.21030494]
[1673647080617,0.136,19821.0,19815.0,0.72087594]
[1673647080876,0.137,19820.0,19819.0,0.001]
[1673647081123,0.80791192,19824.0,19816.0,0.17997]
[1673647081124,0.37564334,19824.0,19816.0,0.17997]
[1673647081380,0.37564334,19824.0,19817.0,0.21030494]
[1673647081381,0.136,19820.0,19817.0,0.21030494]
[1673647081643,0.37606766,19826.0,19819.0,0.03354967]
[1673647081887,0.2,19827.0,19819.0,0.03354967]
[1673647081888,0.37328139,19828.0,19820.0,0.52079094]
[1673647082133,0.03732814,19827.0,19821.0,0.21030494]
[1673647082377,0.756488,19829.0,19822.0,0.21030494]
[1673647082378,0.37399643,19828.0,19822.0,0.21030494]
[1673647082636,0.2,19827.0,19823.0,0.21030494]
[1673647082885,0.240131,19826.0,19823.0,0.21030494]
[1673647083132,0.25222,19825.0,19817.0,0.03354967]
[1673647083378,0.240131,19824.0,19814.0,0.15]
[1673647083627,0.2,19823.0,19822.0,0.008]
[1673647083873,0.2,19823.0,19815.0,0.21030494]
[1673647084138,0.7663637,19822.0,19815.0,0.21030494]
[1673647084484,0.4232421,19821.0,19815.0,0.21030494]
[1673647085183,0.92778501,19822.0,19815.0,0.21030494]
[1673647085438,0.42352732,19821.0,19816.0,0.21030494]
[1673647085684,0.42352732,19822.0,19817.0,0.610533]
[1673647085933,0.2,19824.0,19817.0,0.610533]
[1673647085934,0.42352732,19823.0,19818.0,0.3]
[1673647086178,0.25225,19822.0,19818.0,0.21030494]
[1673647086442,0.25229,19819.0,19815.0,0.01]
[1673647086694,0.25229,19819.0,19813.0,0.00617598]
[1673647086695,0.42352732,19818.0,19813.0,0.00617598]
[1673647086941,0.42352732,19818.0,19817.0,0.008]
[1673647087198,0.86365832,19818.0,19813.0,0.00617598]
[1673647087453,0.2,19816.0,19813.0,0.00617598]
[1673647087700,0.240131,19815.0,19813.0,0.00617598]
[1673647087947,0.42352732,19815.0,19813.0,0.00617598]
[1673647088232,0.240131,19814.0,19813.0,0.00617598]
[1673647088472,0.239071,19814.0,19813.0,0.00617598]
[1673647088723,0.239071,19814.0,19807.0,0.00122813]
[1673647088976,0.61852732,19813.0,19807.0,0.00122813]
[1673647089225,0.66257632,19812.0,19807.0,0.00122813]
[1673647089474,0.62352732,19811.0,19807.0,0.00122813]
[1673647089755,0.42352732,19811.0,19807.0,0.00122813]
[1673647090002,0.71309322,19812.0,19807.0,0.00122813]
[1673647090249,0.51433664,19812.0,19807.0,0.21153307]
[1673647090506,0.62352732,19811.0,19807.0,0.21153307]
[1673647090842,0.62302546,19811.0,19807.0,0.00122813]
[1673647091007,0.62302546,19811.0,19807.0,0.01122813]
[1673647091253,0.2,19811.0,19807.0,0.01122813]
[1673647091762,0.42287848,19810.0,19807.0,0.01122813]
[1673647092013,0.239049,19809.0,19807.0,0.01222813]
[1673647092261,0.42287848,19810.0,19807.0,0.00122813]
[1673647092498,0.239049,19809.0,19807.0,0.01222813]
[1673647092745,0.2,19809.0,19807.0,0.00122813]
[1673647092992,0.239049,19808.0,19807.0,0.00122813]
[1673647093234,0.66159672,19808.0,19807.0,0.01322813]
[1673647093485,0.75015639,19808.0,19807.0,0.01322813]
[1673647093740,0.66159672,19808.0,19807.0,0.00122813]
[1673647093999,0.239049,19808.0,19807.0,0.00122813]
[1673647094498,0.66197211,19808.0,19807.0,0.00122813]
[1673647094743,0.246049,19808.0,19807.0,0.01222813]
[1673647094994,0.007,19808.0,19807.0,0.01222813]
[1673647095235,0.007,19808.0,19807.0,0.08957813]
[1673647095483,0.007,19808.0,19807.0,0.29988307]
[1673647095734,0.007,19808.0,19807.0,0.70134013]
[1673647095977,0.007,19808.0,19807.0,0.32399013]
[1673647096218,0.007,19808.0,19807.0,0.31222813]
[1673647096503,0.007,19808.0,19807.0,0.01222813]
[1673647097487,0.07714,19808.0,19806.0,0.00740377]
[1673647097739,0.014,19808.0,19807.0,0.08835]
[1673647097977,0.42352732,19809.0,19807.0,0.08835]
[1673647097978,0.42352732,19811.0,19807.0,0.466252]
[1673647098237,1.28982532,19814.0,19808.0,0.51030494]
[1673647098482,2.156398,19817.0,19809.0,1.53163094]
[1673647098483,1.2801,19817.0,19809.0,1.53163094]
[1673647098723,0.504563,19820.0,19810.0,0.82200894]
[1673647098980,0.42352732,19819.0,19812.0,0.504738]
[1673647099224,0.42352732,19820.0,19813.0,0.51030494]
[1673647099468,1.975821,19821.0,19815.0,0.504666]
[1673647099469,1.73432732,19821.0,19815.0,0.504666]
[1673647099726,1.3108,19821.0,19816.0,0.51030494]
[1673647099984,0.504443,19824.0,19817.0,0.71490894]
[1673647100250,0.756628,19825.0,19818.0,0.82186894]
[1673647100251,0.92794532,19825.0,19818.0,0.82186894]
[1673647100504,0.013,19820.0,19819.0,0.41030494]
[1673647100758,0.42352732,19825.0,19819.0,1.509108]
[1673647101007,0.013,19824.0,19820.0,0.21030494]
[1673647101250,0.2,19824.0,19820.0,0.21030494]
[1673647101502,0.239049,19823.0,19820.0,0.21030494]
[1673647101754,1.5352107,19822.0,19812.0,0.504739]
[1673647102008,1.5352107,19822.0,19809.0,0.662163]
[1673647102009,0.2523,19818.0,19809.0,0.662163]
[1673647102257,0.2523,19818.0,19809.0,0.504813]
[1673647102258,0.2,19816.0,19809.0,0.504813]
[1673647102515,0.42352732,19815.0,19808.0,0.504834]
[1673647102761,0.42352732,19815.0,19807.0,0.504857]
[1673647103014,0.25235,19814.0,19806.0,0.00740377]
[1673647103255,0.2,19812.0,19806.0,0.00740377]
[1673647103503,0.42352732,19811.0,19810.0,0.00645622]
[1673647103750,0.66257632,19811.0,19810.0,0.00645622]
[1673647104243,0.42352732,19813.0,19810.0,0.08380622]
[1673647104486,0.50452732,19814.0,19810.0,0.00645622]
[1673647104731,0.50452732,19814.0,19810.0,0.21676116]
[1673647104732,0.136,19811.0,19810.0,0.21676116]
[1673647104977,0.136,19811.0,19810.0,0.00645622]
[1673647105230,0.704604,19818.0,19811.0,0.2]
[1673647105480,0.752529,19818.0,19812.0,0.52197794]
[1673647105722,0.752529,19818.0,19813.0,0.21030494]
[1673647105968,0.752529,19818.0,19814.0,0.21030494]
[1673647105969,0.239049,19817.0,19814.0,0.21030494]
[1673647106215,0.704604,19818.0,19814.0,0.21030494]
[1673647106480,0.239049,19817.0,19814.0,0.21030494]
[1673647106721,0.704604,19818.0,19812.0,0.3]
[1673647106722,0.239049,19816.0,19812.0,0.3]
[1673647106980,0.504548,19820.0,19814.0,0.504681]
[1673647106981,0.36178836,19820.0,19814.0,0.504681]
[1673647107233,0.504473,19823.0,19814.0,0.504681]
[1673647107234,0.504473,19823.0,19816.0,0.2]
[1673647107488,0.5549443,19822.0,19817.0,0.21030494]
[1673647107726,0.491309,19821.0,19818.0,0.21030494]
[1673647107992,1.00908,19820.0,19818.0,0.21030494]
[1673647108310,0.239049,19819.0,19811.0,0.15]
[1673647108560,0.20841772,19816.0,19811.0,0.21030494]
[1673647108808,0.239049,19815.0,19810.0,0.00645622]
[1673647109080,1.074393,19816.0,19810.0,0.00645622]
[1673647109327,0.2,19815.0,19810.0,0.21676116]
[1673647109577,0.2,19815.0,19810.0,0.00645622]
[1673647110090,1.0176317,19814.0,19810.0,0.00645622]
[1673647110342,1.08367039,19813.0,19810.0,0.00645622]
[1673647110597,1.14400837,19812.0,19810.0,0.00645622]
[1673647110849,1.64060401,19811.0,19810.0,0.00645622]
[1673647111103,0.2,19810.0,19806.0,0.00740377]
[1673647111373,0.37970864,19809.0,19806.0,0.00740377]
[1673647111619,0.704817,19810.0,19806.0,0.00740377]
[1673647111620,0.239049,19808.0,19806.0,0.00740377]
[1673647111865,0.88452564,19810.0,19806.0,0.00740377]
[1673647111866,0.88396347,19810.0,19806.0,0.00740377]
[1673647112104,0.504817,19810.0,19806.0,0.00740377]
[1673647112351,0.239049,19809.0,19806.0,0.21770871]
[1673647112619,1.53211772,19816.0,19807.0,0.21030494]
[1673647112872,1.53211772,19816.0,19809.0,1.009606]
[1673647112873,0.20841772,19816.0,19809.0,1.009606]
[1673647113118,0.135,19810.0,19809.0,1.209606]
[1673647113366,0.5284419,19815.0,19810.0,0.3]
[1673647113612,0.5284419,19815.0,19811.0,0.21030494]
[1673647113613,0.15084,19815.0,19811.0,0.21030494]
[1673647114102,0.655513,19815.0,19811.0,0.21030494]
[1673647114358,0.92820032,19815.0,19811.0,0.21030494]
[1673647114599,0.92820032,19815.0,19806.0,0.51229577]
[1673647114600,0.25236,19813.0,19806.0,0.51229577]
[1673647114842,1.67208532,19812.0,19806.0,0.00740377]
[1673647115094,0.2,19810.0,19806.0,0.00740377]
[1673647115342,0.92835332,19809.0,19806.0,0.00740377]
[1673647115590,0.86257632,19808.0,19804.0,0.00254606]
[1673647115832,0.42352732,19807.0,19804.0,0.00254606]
[1673647116092,0.029,19806.0,19804.0,0.00254606]
[1673647117091,0.124,19806.0,19804.0,0.00254606]
[1673647117578,0.029,19806.0,19804.0,0.00254606]
[1673647117834,0.161,19806.0,19804.0,0.50748206]
[1673647118086,0.161,19806.0,19805.0,0.311798]
[1673647118347,0.161,19806.0,19805.0,1.11686197]
[1673647118596,0.161,19806.0,19805.0,1.32716691]
[1673647118842,0.161,19806.0,19805.0,1.36677851]
[1673647118843,0.029,19806.0,19805.0,1.36677851]
[1673647119094,0.029,19806.0,19805.0,1.35647357]
[1673647119332,0.20841772,19816.0,19806.0,0.2]
[1673647119581,0.20841772,19816.0,19809.0,1.514463]
[1673647119817,0.20841772,19816.0,19810.0,0.82200894]
[1673647120065,0.5262327,19815.0,19811.0,0.311683]
[1673647120310,0.5262327,19815.0,19806.0,0.15]
[1673647120311,2.19638196,19814.0,19807.0,0.0396116]
[1673647120563,2.19638196,19814.0,19804.0,0.00254606]
[1673647120564,0.94793696,19813.0,19804.0,0.00254606]
[1673647120805,0.94793696,19813.0,19804.0,0.212851]
[1673647120806,1.009565,19811.0,19804.0,0.212851]
[1673647121068,1.009565,19811.0,19804.0,0.00254606]
[1673647121069,0.2,19809.0,19804.0,0.00254606]
[1673647121320,0.92656226,19808.0,19804.0,0.00254606]
[1673647121565,0.66071691,19807.0,19804.0,0.00254606]
[1673647121807,1.986238,19811.0,19804.0,0.50748206]
[1673647121808,1.331,19811.0,19804.0,0.50748206]
[1673647122060,0.2,19815.0,19806.0,0.2]
[1673647122309,0.133,19809.0,19807.0,0.21030494]
[1673647122566,0.42170426,19814.0,19808.0,1.826249]
[1673647122822,0.019,19811.0,19809.0,0.41030494]
[1673647123069,0.57219426,19815.0,19810.0,1.621294]
[1673647123365,0.20841772,19816.0,19811.0,0.52198894]
[1673647123615,0.10841772,19816.0,19812.0,1.51976694]